bitfinex/quotes_SOLUSD_20240827
["timestamp","ask_amount","ask_price","bid_price","bid_amount"]
[1724774761627,392.5403656,153.61,153.51,46.42792399]
[1724774761841,386.0304656,153.61,153.52,1.30242033]
[1724774762025,392.5404656,153.61,153.51,45.12549]
[1724774763844,7.6404656,153.61,153.51,45.12549]
[1724774764055,1.1304656,153.61,153.51,45.12549]
[1724774764355,1.1304656,153.61,153.52,1.30236032]
[1724774764724,1.1304656,153.61,153.51,45.12549]
[1724774765066,6.5091,153.63,153.52,52.24770958]
[1724774765345,1.13040609,153.63,153.54,6.4093]
[1724774765556,1.13040609,153.63,153.56,16.3728]
[1724774765763,6.5066,153.69,153.57,45.12549]
[1724774765936,1.13005917,153.67,153.58,1.42728167]
[1724774766137,6.5066,153.69,153.58,1.42728167]
[1724774766449,7.63657674,153.69,153.58,1.42728167]
[1724774766660,6.507,153.68,153.58,1.42728167]
[1724774767156,1.12997674,153.69,153.58,1.42728167]
[1724774767326,6.5074,153.67,153.58,0.12549]
[1724774767740,6.5074,153.67,153.57,45.0]
[1724774768553,42.34490958,153.68,153.57,45.0]
[1724774768730,7.63687674,153.69,153.59,22.4265]
[1724774769060,7.63657674,153.69,153.6,1.30176562]
[1724774769354,6.5077,153.67,153.59,22.4265]
[1724774770055,44.84831985,153.67,153.59,22.4265]
[1724774770351,6.63369,153.66,153.59,22.4265]
[1724774770548,6.75918,153.66,153.59,22.4265]
[1724774770748,6.5084,153.65,153.59,22.4265]
[1724774774338,6.5088,153.64,153.59,22.4265]
[1724774774552,44.84831985,153.64,153.59,22.4265]
[1724774774727,6.5096,153.62,153.59,16.0869]
[1724774775054,6.5092,153.63,153.59,16.0869]
[1724774776532,6.5104,153.6,153.59,16.0869]
[1724774776737,16.39679,153.65,153.59,16.0869]
[1724774776968,6.5096,153.62,153.59,16.0869]
[1724774777535,384.9,153.66,153.59,16.0869]
[1724774778166,391.4078,153.66,153.59,16.0869]
[1724774778343,384.9,153.66,153.59,16.0869]
[1724774778659,6.507,153.68,153.59,16.0869]
[1724774778849,1.12997674,153.69,153.61,6.4763]
[1724774779052,6.5071,153.68,153.61,6.4763]
[1724774780249,1.12997674,153.69,153.61,7.77805506]
[1724774780484,6.506,153.71,153.61,7.77805506]
[1724774780659,6.506,153.71,153.62,45.0]
[1724774780965,6.506,153.71,153.63,1.30157693]
[1724774781154,6.5063,153.7,153.62,45.0]
[1724774781350,6.5067,153.69,153.61,6.4763]
[1724774782747,6.5062,153.7,153.61,6.4763]
[1724774782951,6.5062,153.7,153.62,45.0]
[1724774783654,386.02982663,153.72,153.63,15.5785]
[1724774783969,392.53552663,153.72,153.63,15.5785]
[1724774784138,1.12982663,153.72,153.63,15.5785]
[1724774784344,51.35521985,153.69,153.63,15.5785]
[1724774784543,6.507,153.68,153.63,15.5785]
[1724774785049,6.5066,153.69,153.63,15.5785]
[1724774785442,1.12982663,153.72,153.64,1.30176153]
[1724774785644,1.12982663,153.72,153.65,1.30148668]
[1724774786063,7.63512663,153.72,153.65,1.30148668]
[1724774786467,1.12982663,153.72,153.65,1.30148668]
[1724774786638,44.84831985,153.77,153.66,22.6748]
[1724774786839,6.5041,153.75,153.66,22.6748]
[1724774787049,1.12951596,153.76,153.66,22.6748]
[1724774787336,6.5049,153.73,153.66,22.6748]
[1724774788743,6.5045,153.74,153.66,22.6748]
[1724774789053,44.84831985,153.81,153.67,23.02049]
[1724774789248,1.12932779,153.78,153.67,67.895]
[1724774789451,45.97764764,153.78,153.67,67.895]
[1724774789764,1.12943222,153.77,153.67,22.895]
[1724774790065,6.5037,153.76,153.67,22.895]
[1724774790366,44.84831985,153.76,153.67,22.895]
[1724774790669,6.5045,153.74,153.67,22.895]
[1724774792569,6.62959,153.75,153.67,22.895]
[1724774793041,6.5041,153.75,153.67,22.895]
[1724774793362,6.62999,153.74,153.67,22.895]
[1724774793568,6.75548,153.74,153.67,22.895]
[1724774794273,6.5041,153.75,153.67,22.895]
[1724774794763,6.504,153.76,153.67,22.895]
[1724774795065,386.02943222,153.77,153.67,22.895]
[1724774795364,430.87775207,153.77,153.67,22.895]
[1724774795679,386.02943222,153.77,153.67,22.895]
[1724774795976,6.5036,153.76,153.67,22.895]
[1724774798055,392.53263222,153.77,153.67,22.895]
[1724774799452,7.63263222,153.77,153.67,22.895]
[1724774803882,6.5037,153.76,153.67,22.895]
[1724774805765,6.5041,153.75,153.67,22.895]
[1724774807997,6.5053,153.72,153.67,22.895]
[1724774808163,6.5054,153.72,153.67,22.895]
[1724774808485,35.81580321,153.73,153.67,22.895]
[1724774808799,6.5045,153.74,153.67,22.895]
[1724774809079,6.5041,153.75,153.67,22.895]
[1724774810083,6.5041,153.75,153.68,1.30120519]
[1724774810290,6.5041,153.75,153.67,22.895]
[1724774810667,386.02943222,153.77,153.68,35.81580321]
[1724774810865,386.02943222,153.77,153.68,80.81580321]
[1724774812685,386.02943222,153.77,153.69,15.1414]
[1724774812876,384.9,153.77,153.69,15.1414]
[1724774813681,384.9,153.77,153.7,45.0]
[1724774813874,384.9,153.77,153.71,21.9283]
[1724774816687,384.9,153.77,153.72,45.0]
[1724774817384,384.9,153.78,153.72,45.0]
[1724774817583,384.9,153.77,153.72,45.0]
[1724774820201,1.12902153,153.82,153.73,1.30069385]
[1724774820391,35.81580321,153.87,153.74,51.83039321]
[1724774820599,35.81580321,153.85,153.74,16.01459]
[1724774820795,1.12886708,153.84,153.75,45.0]
[1724774821183,6.501,153.83,153.74,15.8891]
[1724774822110,35.81580321,153.83,153.74,15.8891]
[1724774822296,35.81580321,153.79,153.74,15.8891]
[1724774822500,6.5032,153.78,153.74,15.8891]
[1724774823510,42.31820321,153.79,153.74,15.8891]
[1724774824301,6.5028,153.78,153.74,15.8891]
[1724774824505,42.31820321,153.79,153.74,15.8891]
[1724774824706,35.81580321,153.79,153.74,15.8891]
[1724774825310,6.5032,153.77,153.74,15.8891]
[1724774826707,35.81580321,153.79,153.74,15.8891]
[1724774827083,35.81580321,153.77,153.71,6.0392]
[1724774827301,35.81580321,153.75,153.7,15.8574]
[1724774827601,6.5059,153.71,153.67,6.1105]
[1724774827990,6.5065,153.7,153.66,15.8574]
[1724774828294,35.81580321,153.73,153.66,15.8574]
[1724774828295,6.5058,153.71,153.66,15.8574]
[1724774828608,35.81580321,153.73,153.66,15.8574]
[1724774830520,35.81580321,153.71,153.66,15.8574]
[1724774830801,6.5062,153.7,153.66,15.8574]
[1724774830992,42.32160321,153.71,153.66,15.8574]
[1724774831595,35.81580321,153.71,153.66,15.8574]
[1724774832886,42.32150321,153.71,153.66,15.8574]
[1724774833488,384.9,153.75,153.66,15.8574]
[1724774833704,1.12886708,153.84,153.75,15.1371]
[1724774833903,1.12886708,153.84,153.76,46.30032868]
[1724774834102,6.4983,153.89,153.77,37.36710759]
[1724774834307,7.62687577,153.89,153.78,45.0]
[1724774834494,1.12857577,153.89,153.79,1.30016565]
[1724774834694,1.12857577,153.89,153.78,45.0]
[1724774834695,1.12857577,153.89,153.8,1.30016503]
[1724774834901,1.12857577,153.89,153.81,21.68329]
[1724774835097,6.4973,153.91,153.81,21.5578]
[1724774835308,43.44151271,153.91,153.81,21.5578]
[1724774835812,36.94421271,153.91,153.81,21.5578]
[1724774835993,43.44151271,153.91,153.81,21.5578]
[1724774836801,35.81580321,153.87,153.81,21.5578]
[1724774837200,42.31470321,153.87,153.81,21.5578]
[1724774837518,42.31480321,153.87,153.81,21.5578]
[1724774837716,35.81580321,153.87,153.81,21.5578]
[1724774838727,6.62409,153.88,153.81,21.5578]
[1724774838932,0.12549,153.87,153.81,21.5578]
[1724774841019,35.94129321,153.87,153.81,21.5578]
[1724774842940,42.44029321,153.87,153.81,21.5578]
[1724774843720,6.4995,153.86,153.81,21.5578]
[1724774843922,6.5011,153.82,153.77,21.6249]
[1724774844126,42.31650321,153.83,153.77,21.6249]
[1724774845029,6.5011,153.82,153.77,21.6249]
[1724774845531,42.31650321,153.83,153.77,21.6249]
[1724774845729,35.94129321,153.85,153.77,21.6249]
[1724774846114,384.9,153.86,153.77,21.6249]
[1724774846313,384.9,153.86,153.78,80.94129321]
[1724774846613,384.9,153.86,153.79,1.29999794]
[1724774846807,384.9,153.86,153.8,1.30005227]
[1724774847148,42.31350321,153.9,153.8,1.30005227]
[1724774847149,6.4977,153.9,153.8,1.30005227]
[1724774847428,1.1284095,153.91,153.81,15.90499]
[1724774847610,1.1284095,153.91,153.82,45.0]
[1724774847821,6.4977,153.9,153.82,45.0]
[1724774848021,6.4977,153.9,153.81,15.90499]
[1724774848022,42.31350321,153.9,153.81,15.7795]
[1724774849519,35.81580321,153.9,153.82,1.30001281]
[1724774849738,35.81580321,153.9,153.82,45.0]
[1724774850554,1.1284095,153.91,153.83,7.70627165]
[1724774851231,1.1284095,153.91,153.83,6.4064]
[1724774851533,35.81580321,153.86,153.83,6.4064]
[1724774855589,43.4432381,153.88,153.83,6.4064]
[1724774855744,36.9443381,153.88,153.83,6.4064]
[1724774856328,43.4429381,153.88,153.83,6.4064]
[1724774856540,36.9443381,153.88,153.83,6.4064]
[1724774857749,43.4428381,153.88,153.83,6.4064]
[1724774859158,35.81580321,153.88,153.83,6.4064]
[1724774859953,42.31440321,153.88,153.83,6.4064]
[1724774861753,35.81580321,153.88,153.83,6.4064]
[1724774867548,43.44206415,153.9,153.83,6.4064]
[1724774868457,36.94426415,153.9,153.83,6.4064]
[1724774870431,43.44196415,153.9,153.83,6.4064]
[1724774871256,35.81580321,153.88,153.83,6.4064]
[1724774872344,43.44206415,153.9,153.83,6.4064]
[1724774876345,43.44206415,153.9,153.81,15.7795]
[1724774876346,6.4994,153.86,153.81,15.7795]
[1724774876549,0.12549,153.89,153.81,15.7795]
[1724774876763,6.4986,153.88,153.81,15.7795]
[1724774876943,35.81580321,153.87,153.81,15.7795]
[1724774878641,35.81580321,153.89,153.81,15.7795]
[1724774879139,7.62656094,153.9,153.82,1.30002086]
[1724774879140,1.12846094,153.9,153.82,1.30002086]
[1724774879342,1.12846094,153.9,153.82,66.30002086]
[1724774879560,433.76990321,153.94,153.84,22.3119]
[1724774879854,433.76990321,153.94,153.85,1.29972718]
[1724774879855,7.62465744,153.93,153.85,1.29972718]
[1724774880061,7.62465744,153.93,153.84,22.3119]
[1724774880062,7.62465744,153.93,153.86,1.29972499]
[1724774880574,42.31280321,153.92,153.84,22.3119]
[1724774881352,35.81580321,153.92,153.84,22.3119]
[1724774882060,7.62465744,153.93,153.84,22.3119]
[1724774882061,43.44046065,153.93,153.84,22.3119]
[1724774882264,43.44046065,153.93,153.85,1.29975829]
[1724774882453,43.44046065,153.93,153.84,22.3119]
[1724774883054,35.81580321,153.91,153.84,22.3119]
[1724774883751,35.81580321,153.89,153.84,22.3119]
[1724774886667,1.12815744,153.93,153.85,1.29995405]
[1724774886851,36.94396065,153.93,153.86,1.29970958]
[1724774887056,1.12815744,153.93,153.86,1.29970958]
[1724774887257,1.12815744,153.93,153.87,15.8269]
[1724774887458,1.12815744,153.93,153.88,1.2994804]
[1724774887653,6.4952,153.96,153.88,1.2994804]
[1724774887958,42.31140321,153.95,153.87,15.8269]
[1724774888864,35.81580321,153.93,153.87,15.8269]
[1724774889081,35.81580321,153.91,153.87,15.8269]
[1724774891550,35.81580321,153.89,153.87,15.8269]
[1724774892366,35.81580321,153.89,153.84,6.4691]
[1724774894557,35.81580321,153.91,153.84,6.4691]
[1724774894775,35.81580321,153.91,153.84,7.76896033]
[1724774894975,42.31310321,153.91,153.84,6.4691]
[1724774895270,35.81580321,153.91,153.84,6.4691]
[1724774896482,42.31310321,153.91,153.84,6.4691]
[1724774897064,35.81580321,153.91,153.84,6.4691]
[1724774898078,35.81580321,153.91,153.85,45.0]
[1724774898452,35.81580321,153.91,153.84,6.4691]
[1724774898872,35.81580321,153.93,153.85,45.0]
[1724774899254,42.31230321,153.93,153.85,45.0]
[1724774900276,35.81580321,153.93,153.85,45.0]
[1724774902080,42.31240321,153.93,153.84,6.4691]
[1724774903977,14.29730726,153.92,153.84,6.4691]
[1724774905353,14.29730726,153.92,153.85,45.0]
[1724774907682,1.12827221,153.96,153.87,14.29730726]
[1724774907984,6.4944,153.98,153.89,14.29730726]
[1724774908187,6.4944,153.98,153.9,1.29928736]
[1724774908386,0.8375389,153.99,153.91,21.5496]
[1724774908564,15.13484616,153.99,153.92,1.29919943]
[1724774908764,21.62874616,153.99,153.91,21.5496]
[1724774910585,14.29730726,153.97,153.91,21.5496]
[1724774912187,35.72810466,153.95,153.91,15.5189]
[1724774914573,35.72810466,153.93,153.86,15.7091]
[1724774914777,35.72810466,153.91,153.86,15.7091]
[1724774915084,42.22460466,153.93,153.86,15.7091]
[1724774915460,0.12549,153.96,153.86,15.7091]
[1724774915665,6.4956,153.95,153.86,15.7091]
[1724774916562,6.496,153.94,153.86,15.7091]
[1724774916987,42.22410466,153.94,153.86,15.7091]
[1724774920680,35.72810466,153.94,153.86,15.7091]
[1724774920890,35.72810466,153.92,153.86,15.7091]
[1724774921071,35.72810466,153.9,153.86,15.7091]
[1724774922696,0.12549,153.96,153.86,15.7091]
[1724774922897,6.4964,153.93,153.86,15.7091]
[1724774923784,6.4969,153.92,153.86,15.7091]
[1724774924178,35.72810466,153.89,153.86,15.7091]
[1724774924998,42.35119466,153.91,153.86,15.7091]
[1724774925300,42.22570466,153.91,153.86,15.7091]
[1724774925996,42.22460466,153.93,153.86,15.7091]
[1724774926170,6.4965,153.93,153.86,15.7091]
[1724774926671,420.62810466,153.97,153.87,45.0]
[1724774926875,427.12320466,153.97,153.87,45.0]
[1724774927500,42.22320466,153.97,153.87,45.0]
[1724774927670,42.22320466,153.97,153.89,6.5804]
[1724774928098,6.4944,153.98,153.89,6.5804]
[1724774928684,7.62238373,153.98,153.89,6.5804]
[1724774929303,6.4947,153.97,153.89,6.5804]
[1724774931091,6.4953,153.96,153.89,6.5804]
[1724774932407,6.496,153.94,153.89,6.5804]
[1724774933288,6.4972,153.92,153.89,6.5804]
[1724774933495,6.4967,153.93,153.88,15.2282]
[1724774933697,42.22400466,153.95,153.88,15.2282]
[1724774934404,6.4962,153.94,153.88,15.2282]
[1724774935612,42.22470466,153.93,153.88,15.2282]
[1724774936314,6.62149,153.94,153.88,15.2282]
[1724774936486,6.496,153.94,153.88,15.2282]
[1724774937302,35.72810466,153.95,153.88,15.2282]
[1724774937504,0.12549,153.94,153.88,15.2282]
[1724774938307,42.22550466,153.91,153.88,15.2282]
[1724774941696,0.12549,153.94,153.88,15.2282]
[1724774941898,35.85359466,153.94,153.88,15.2282]
[1724774942710,6.4965,153.93,153.88,15.2282]
[1724774942905,6.4968,153.92,153.88,15.2282]
[1724774943998,6.4965,153.93,153.88,15.2282]
[1724774945408,42.34969466,153.94,153.88,15.2282]
[1724774946793,384.9,153.96,153.9,6.187]
[1724774949309,384.9,153.96,153.91,1.29920384]
[1724774951097,0.8375389,153.99,153.92,16.1155]
[1724774952199,7.3314389,153.99,153.92,16.1155]
[1724774955006,0.8375389,153.99,153.92,16.1155]
[1724774959726,0.8375389,153.99,153.92,30.39985328]
[1724774960024,0.8375389,153.99,153.93,14.28435328]
[1724774960205,0.8375389,153.99,153.92,16.1155]
[1724774960405,14.28435328,153.98,153.92,16.1155]
[1724774961210,0.8375389,153.99,153.92,16.1155]
[1724774963122,7.3315389,153.99,153.92,16.1155]
[1724774963320,14.28435328,153.96,153.92,16.1155]
[1724774963503,14.28435328,153.96,153.85,7.99756624]
[1724774963504,14.28435328,153.94,153.88,16.5729]
[1724774963702,14.28435328,153.92,153.88,16.5729]
[1724774963902,14.28435328,153.9,153.83,6.04482099]
[1724774964103,6.5006,153.83,153.82,16.5729]
[1724774964315,14.28435328,153.83,153.78,16.5729]
[1724774964704,14.40984328,153.82,153.78,19.98599789]
[1724774964910,14.40984328,153.82,153.78,16.5729]
[1724774965305,0.12549,153.82,153.78,16.5729]
[1724774965509,14.28435328,153.8,153.78,16.5729]
[1724774966010,0.12549,153.82,153.78,16.5729]
[1724774966209,35.92096402,153.83,153.78,16.5729]
[1724774966921,35.92096402,153.83,153.71,14.05415208]
[1724774966922,35.79547402,153.79,153.72,15.2065]
[1724774967309,0.12549,153.78,153.72,15.2065]
[1724774967918,0.12549,153.78,153.66,14.06108624]
[1724774967919,35.79547402,153.77,153.67,15.2065]
[1724774968155,6.62859,153.78,153.67,15.2065]
[1724774968156,35.92096402,153.76,153.67,15.2065]
[1724774968422,35.92096402,153.78,153.67,20.25141075]
[1724774968730,0.12549,153.77,153.67,16.83569657]
[1724774969426,0.12549,153.77,153.67,15.2065]
[1724774970203,1.13243696,153.76,153.67,51.00197402]
[1724774970629,0.12549,153.78,153.68,45.0]
[1724774970829,1.38335283,153.78,153.68,45.0]
[1724774971028,1.25786283,153.78,153.68,45.0]
[1724774971330,1.13237283,153.78,153.69,35.79547402]
[1724774971831,1.13237283,153.78,153.68,45.0]
[1724774973411,6.62869,153.77,153.67,15.2065]
[1724774973626,0.12549,153.76,153.67,15.2065]
[1724774973829,35.92096402,153.76,153.67,15.2065]
[1724774975132,0.12549,153.76,153.67,15.2065]
[1724774975328,35.79547402,153.74,153.67,15.2065]
[1724774975722,0.25098,153.73,153.67,15.2065]
[1724774976232,391.404,153.75,153.67,15.2065]
[1724774976430,384.9,153.75,153.67,15.2065]
[1724774977019,36.04645402,153.74,153.67,15.2065]
[1724774977429,35.79547402,153.72,153.67,15.2065]
[1724774977635,51.75708,153.71,153.62,16.0969]
[1724774977809,6.5073,153.68,153.62,16.0969]
[1724774978012,6.5066,153.69,153.62,16.0969]
[1724774979027,0.12549,153.68,153.62,16.0969]
[1724774979232,35.79547402,153.66,153.58,16.0209]
[1724774979835,42.30327402,153.66,153.58,16.0209]
[1724774980136,0.25098,153.65,153.58,16.0209]
[1724774980909,0.12549,153.65,153.58,16.0209]
[1724774981631,6.63419,153.65,153.51,22.3204]
[1724774981844,0.12549,153.64,153.52,35.79547402]
[1724774982924,42.42966402,153.65,153.52,35.79547402]
[1724774983325,0.12549,153.64,153.52,35.79547402]
[1724774983635,0.12549,153.64,153.53,1.30225213]
[1724774983841,0.12549,153.64,153.53,66.30225213]
[1724774985237,42.42936402,153.65,153.53,66.30225213]
[1724774986436,42.42936402,153.65,153.53,65.0]
[1724774987737,0.12549,153.65,153.54,35.92096402]
[1724774987940,384.9,153.67,153.56,35.79547402]
[1724774988146,391.4076,153.67,153.56,35.79547402]
[1724774988347,391.4076,153.67,153.57,45.0]
[1724774990533,384.9,153.67,153.57,45.0]
[1724774990746,384.9,153.67,153.58,15.5443]
[1724774990923,58.42896402,153.68,153.58,16.84625176]
[1724774991123,1.13316392,153.66,153.58,15.5443]
[1724774992229,1.13316392,153.66,153.59,45.0]
[1724774992745,12.9775,153.69,153.59,45.0]
[1724774992931,1.25858572,153.68,153.59,45.0]
[1724774993552,1.25858572,153.68,153.58,57.91337402]
[1724774994737,1.13309572,153.68,153.59,45.0]
[1724774995649,1.13309572,153.68,153.58,57.91337402]
[1724774997649,1.13309572,153.68,153.59,45.0]
[1724775000228,1.13309572,153.68,153.6,35.79547402]
[1724775000428,384.9,153.71,153.61,1.30169192]
[1724775000629,1.13281307,153.71,153.62,35.79547402]
[1724775000852,15.6021,153.72,153.62,35.79547402]
[1724775001442,22.1075,153.72,153.62,35.79547402]
[1724775001656,22.1075,153.72,153.6,35.92096402]
[1724775001958,22.1075,153.72,153.61,65.12549]
[1724775002439,22.1075,153.72,153.62,35.79547402]
[1724775003836,6.2233,153.78,153.68,35.79547402]
[1724775004760,6.2233,153.78,153.69,45.0]
[1724775008260,6.2233,153.78,153.7,35.79547402]
[1724775012664,1.13234679,153.79,153.72,35.79547402]
[1724775012866,391.5067,153.82,153.72,35.79547402]
[1724775013549,391.5067,153.82,153.73,1.30068166]
[1724775013749,391.5067,153.82,153.74,35.79547402]
[1724775017547,391.5067,153.82,153.76,35.79547402]
[1724775017761,384.9,153.82,153.78,35.79547402]
[1724775018048,384.9,153.82,153.76,35.79547402]
[1724775019373,384.9,153.82,153.77,45.0]
[1724775021168,384.9,153.82,153.76,35.79547402]
[1724775022557,28.503,153.86,153.76,35.79547402]
[1724775022762,0.12549,153.85,153.76,35.79547402]
[1724775023154,22.0036,153.86,153.76,35.79547402]
[1724775023360,22.0036,153.86,153.78,35.79547402]
[1724775023656,22.0036,153.86,153.79,45.0]
[1724775024053,1.1316033,153.89,153.8,37.09554148]
[1724775024483,1.1316033,153.89,153.8,35.79547402]
[1724775024665,7.6297033,153.89,153.8,35.79547402]
[1724775025260,6.62409,153.88,153.78,35.79547402]
[1724775025585,0.12549,153.88,153.79,1.30018308]
[1724775025872,0.1010861,153.88,153.78,80.79547402]
[1724775026053,0.1010861,153.88,153.8,37.09557317]
[1724775026569,7.6298033,153.89,153.8,37.09557317]
[1724775027378,7.6298033,153.89,153.8,35.79547402]
[1724775028556,7.6298033,153.89,153.8,37.09551404]
[1724775031384,1.1316033,153.89,153.8,37.09551404]
[1724775031574,1.1316033,153.89,153.82,35.79547402]
[1724775031776,6.5341,153.9,153.82,35.79547402]
[1724775032093,6.5341,153.9,153.83,45.0]
[1724775032262,6.5341,153.9,153.82,35.79547402]
[1724775032465,6.5341,153.9,153.8,35.79547402]
[1724775032676,6.5341,153.9,153.81,65.0]
[1724775032975,6.5341,153.9,153.8,35.79547402]
[1724775033189,0.25098,153.89,153.78,35.79547402]
[1724775033362,0.25098,153.89,153.79,20.0]
[1724775033870,0.12549,153.89,153.79,20.0]
[1724775034182,6.5341,153.9,153.8,35.79547402]
[1724775034480,6.5341,153.9,153.8,80.79547402]
[1724775034686,6.5341,153.9,153.81,1.2999397]
[1724775034880,6.5341,153.9,153.82,35.79547402]
[1724775035069,6.5341,153.9,153.83,45.0]
[1724775035779,6.5341,153.9,153.84,35.79547402]
[1724775035972,16.6223,153.91,153.86,14.29403664]
[1724775036687,16.6223,153.91,153.84,14.29403664]
[1724775037065,16.6223,153.91,153.85,1.29971849]
[1724775038387,16.6223,153.91,153.86,1.29964956]
[1724775039670,16.6223,153.91,153.84,1.29960662]
[1724775040279,12.6014,153.94,153.85,35.7407757]
[1724775040483,12.6014,153.94,153.86,1.29954838]
[1724775040681,12.6014,153.94,153.85,35.7407757]
[1724775040874,12.6014,153.94,153.86,1.29960032]
[1724775041077,6.1054,153.94,153.86,45.0]
[1724775042171,6.1054,153.94,153.87,35.7407757]
[1724775043378,6.1054,153.94,153.86,45.0]
[1724775044391,12.6014,153.94,153.86,45.0]
[1724775044696,12.6014,153.94,153.85,35.7407757]
[1724775044874,6.1054,153.94,153.85,35.7407757]
[1724775047473,6.1054,153.94,153.86,1.29956756]
[1724775047891,6.1054,153.94,153.85,35.7407757]
[1724775048394,6.1054,153.94,153.86,45.0]
[1724775050669,6.1054,153.94,153.87,35.7407757]
[1724775051290,6.1054,153.94,153.86,45.0]
[1724775051495,6.1054,153.94,153.83,51.6338757]
[1724775051797,6.1054,153.94,153.84,20.0]
[1724775051988,6.1054,153.94,153.85,37.0402906]
[1724775052175,6.1054,153.94,153.85,35.7407757]
[1724775052787,6.1054,153.94,153.86,45.12549]
[1724775053394,6.1054,153.94,153.86,45.0]
[1724775053603,6.1054,153.94,153.85,45.0]
[1724775057180,6.1054,153.94,153.85,80.7407757]
[1724775058097,6.1054,153.94,153.87,14.29129987]
[1724775058285,6.1054,153.94,153.88,45.0]
[1724775059688,6.1054,153.94,153.87,14.29129987]
[1724775060000,6.1054,153.94,153.87,15.91864375]
[1724775060198,6.1054,153.94,153.88,45.0]
[1724775062504,6.1054,153.94,153.87,14.29129987]
[1724775063287,14.41678987,153.93,153.86,1.62745662]
[1724775063814,20.91318987,153.93,153.86,1.62745662]
[1724775065593,14.41678987,153.93,153.86,1.62745662]
[1724775065902,14.29129987,153.93,153.86,1.62745662]
[1724775066200,6.1054,153.94,153.86,1.62745662]
[1724775066406,6.1054,153.94,153.86,3.25498523]
[1724775066579,6.1054,153.94,153.86,5.03841487]
[1724775067194,6.1054,153.94,153.87,1.62740147]
[1724775067401,6.1054,153.94,153.86,15.91875649]
[1724775067981,6.1054,153.94,153.87,1.62744248]
[1724775068204,6.1054,153.94,153.86,14.29129987]
[1724775068405,6.1054,153.94,153.88,14.29129987]
[1724775068703,6.1054,153.94,153.9,14.29129987]
[1724775068907,6.1054,153.94,153.89,45.0]
[1724775069209,6.1054,153.94,153.88,14.29129987]
[1724775069405,6.1054,153.94,153.89,5.03773847]
[1724775069706,6.1054,153.94,153.88,14.29129987]
[1724775070002,6.1054,153.94,153.89,5.03767759]
[1724775070209,6.1054,153.94,153.88,14.29129987]
[1724775070380,6.1054,153.94,153.89,50.03767656]
[1724775070579,6.1054,153.94,153.89,45.0]
[1724775071002,6.1054,153.94,153.88,14.29129987]
[1724775071207,6.1054,153.94,153.89,5.03780402]
[1724775071410,6.1054,153.94,153.88,3.41055487]
[1724775071705,6.1054,153.94,153.87,6.0453636]
[1724775071706,6.1054,153.94,153.89,1.62730324]
[1724775071876,6.1054,153.94,153.87,6.0453636]
[1724775072080,6.1054,153.94,153.88,1.62730235]
[1724775072288,6.1054,153.94,153.89,1.62730235]
[1724775072489,6.1054,153.94,153.87,6.0453636]
[1724775072689,6.1054,153.94,153.88,1.62729913]
[1724775072904,6.1054,153.94,153.89,1.62729913]
[1724775073089,6.1054,153.94,153.87,6.0453636]
[1724775073288,6.1054,153.94,153.88,46.62730057]
[1724775073493,6.1054,153.94,153.89,1.62730057]
[1724775073696,6.1054,153.94,153.88,45.0]
[1724775073890,6.1054,153.94,153.89,1.62728992]
[1724775074091,6.1054,153.94,153.87,45.0]
[1724775074285,6.1054,153.94,153.88,1.62728903]
[1724775074502,6.1054,153.94,153.9,14.29129987]
[1724775074710,16.5726,153.95,153.9,14.29129987]
[1724775075082,6.6457,153.98,153.9,14.29129987]
[1724775075289,6.6457,153.98,153.91,46.62719517]
[1724775075491,6.6457,153.98,153.91,45.0]
[1724775075692,6.6457,153.98,153.92,14.29129987]
[1724775075896,6.6457,153.98,153.93,1.29895435]
[1724775076208,6.6457,153.98,153.93,45.0]
[1724775076405,6.6457,153.98,153.89,35.69955239]
[1724775076713,6.6457,153.98,153.9,66.75265546]
[1724775076887,6.6457,153.98,153.91,1.62716546]
[1724775077088,6.6457,153.98,153.9,65.12549]
[1724775077289,0.8375389,153.99,153.91,37.32673416]
[1724775077490,0.8375389,153.99,153.92,53.97263182]
[1724775077792,0.8375389,153.99,153.92,46.62689637]